Workbook

Sheet Titre
H4: Objectif du labo Excel 2
H6: Utiliser Excel pour décrire les données mettant en évidence une relation entre deux variables catégorielles à l'aide des tableaux croisés en fréquences ou % et des diagrammes en bâtons groupés ou divisés.

Sheet Tableaux croisés %
B2: Analyse tabulaire bivariée: calcul des pourcentages (démonstration)
B4: Y a-t-il une relation d'association entre l'attitude face à la désobéissance civile et le niveau d'instruction?
B6: Attitude face à la désobéissance civile selon le niveau d'instruction (en fréquences) | H6: Calcul des pourcentages à l'intérieur des catégories de la variable indépendante
B8: Désobéissance civile | C8: Niveau d'instruction | H8: Désobéissance civile | I8: Niveau d'instruction
C9: Moins que le secondaire | D9: Secondaire | E9: Post-secondaire | F9: Total | I9: Moins que le secondaire | J9: Secondaire | K9: Postsecondaire
B10: Suivre sa conscience | C10: 4 | D10: 13 | E10: 12 | F10: 29 | H10: Suivre sa conscience | I10: (4/10)*100 | J10: (13/24)*100 | K10: (12/16)*100
B11: Obéir aux lois | C11: 6 | D11: 11 | E11: 4 | F11: 21 | H11: Obéir aux lois | I11: (6/10)*100 | J11: (11/24)*100 | K11: (4/16)*100
B12: Total | C12: 10 | D12: 24 | E12: 16 | F12: 50 | H12: Total | I12: 10 | J12: 24 | K12: 16
B13: Source: Fox, 1999: 126
B15: Attitude face à la désobéissance civile selon le niveau d'instruction (en %) (n=50) | H15: Interprétation statistique: L'analyse tabulaire bivariée montre que seulement 40% des répondants ayant un niveau d'instruction moins que le secondaire suivent leur conscience, contre 75% des diplômés du postsecondaire. La différence étant de 35 points en % (75-40), l'attitude face à la désobéissance civile est fortement dépendante du niveau d'instruction d'après la règle d'Imbeau.
B17: Désobéissance civile | C17: Niveau d'instruction
C18: Moins que le secondaire | D18: Secondaire | E18: Post-secondaire
B19: Suivre sa conscience | C19: =C10/10*100 -> 40 | D19: =D10/24*100 -> 54.16666667 | E19: =E10/16*100 -> 75
B20: Obéir aux lois | C20: =C11/10*100 -> 60 | D20: =D11/24*100 -> 45.83333333 | E20: =E11/16*100 -> 25 | H20: Interprétation théorique: Le fait que les personnes plus instruites soient plus enclines à suivre leur conscience qu'à obéir aux lois peut s'expliquer, entre autres facteurs, par le rôle de l'éducation en matière d'éveil de conscience politique ou citoyenne...
B21: Total | C21: =SUM(C19:C20) -> 100 | D21: =SUM(D19:D20) -> 100 | E21: =SUM(E19:E20) -> 100
B22: Cas (n) | C22: 10 | D22: 24 | E22: 16
B23: Source: Fox, 1999: 126
B25: Grille d'interprétation des différences de % dans un tableau bivarié (Imbeau, 2009: 160)
B32: Analyse tabulaire bivariée: calcul des pourcentages (exercice)
B34: Y a-t-il une relation d'association entre l'importance du travail au Canada et le sexe?
B36: L'importance du travail selon le sexe (en fréquences) | H36: L'importance du travail selon le sexe (en %)
B38: Importance du travail | C38: Sexe | H38: Importance du travail | I38: Sexe
C39: Masculin | D39: Féminin | E39: Total | I39: Masculin | J39: Féminin
B40: Vraiment | C40: 469 | D40: 401 | E40: =C40+D40 -> 870 | H40: Vraiment
B41: Assez | C41: 200 | D41: 240 | E41: =C41+D41 -> 440 | H41: Assez
B42: Pas vraiment | C42: 36 | D42: 56 | E42: 92 | H42: Pas vraiment
B43: Pas du tout | C43: 42 | D43: 39 | E43: 81 | H43: Pas du tout
B44: Total | C44: 747 | D44: 736 | E44: =SUM(E40:E43) -> 1483 | H44: Total | I44: 100 | J44: 100
B45: Source: Imbeau, 2009: 120 | H45: Cas (n) | I45: 747 | J45: 736
H46: Source: Imbeau, 2009: 120
B48: 1. Quelle est, dans ce contexte, la variable dépendante? | H48: 5. Quel est le % de femmes qui estiment que le travail est vraiment important?
B52: 2. Quel est le nombre total de cas? | H52: 6. Quel est le % d'hommes qui estiment que le travail est vraiment important?
B56: 3. Quel est le nombre de femmes qui estiment que le travail est vraiment important? | H56: 7. Quelle est la différence en points de %?
B60: 4. Quel est le nombre d'hommes qui estiment que le travail est vraiment important? | H60: 8. Concluez sur l'existence et la force de la relation

Sheet Diag. bâtons groupés
B2: Diagramme en bâtons groupés ou juxtaposés (démonstration)
B4: Opinion face à la désobéissance civile selon le niveau d'instruction (%)
C6: Opinion face à la désobéissance civile | D6: Niveau d'instruction
D7: < Secondaire | E7: Secondaire | F7: Postsecondaire
C8: Suivre sa conscience | D8: 40 | E8: 54 | F8: 75
C9: Obéir aux lois | D9: 60 | E9: 46 | F9: 25
C10: Total | D10: =SUM(D8:D9) -> 100 | E10: =SUM(E8:E9) -> 100 | F10: =SUM(F8:F9) -> 100
C11: Cas (n) | D11: 10 | E11: 24 | F11: 16
B32: Diagramme en bâtons groupés ou juxtaposés (exercice)
B34: Importance du travail en fonction du sexe au Canada (%)
C36: Importance du travail | D36: Sexe
D37: Masculin | E37: Féminin
C38: Vraiment | D38: =469/D43*100 -> 62.78447122 | E38: =401/E43*100 -> 54.48369565
C39: Assez | D39: =200/D43*100 -> 26.77376171 | E39: =240/E43*100 -> 32.60869565
C40: Pas vraiment | D40: =36/D43*100 -> 4.819277108 | E40: =56/E43*100 -> 7.608695652
C41: Pas du tout | D41: =42/D43*100 -> 5.62248996 | E41: =39/E43*100 -> 5.298913043
C42: Total | D42: =SUM(D38:D41) -> 100 | E42: =SUM(E38:E41) -> 100
C43: Cas (n) | D43: 747 | E43: 736

Sheet Diag. bâtons empilés
B2: Diagrammes en bâtons empilés ou divisés (démonstration)
B4: Situation financière en fonction du niveau d'instruction (%)
B6: Situation financière | C6: Niveau d'instruction
C7: < secondaire | D7: Secondaire | E7: Collège | F7: Univ. 1er cycle | G7: Univ. avancé
B8: Meilleure | C8: 23 | D8: 39 | E8: 43 | F8: 47 | G8: 49
B9: La même | C9: 52 | D9: 39 | E9: 38 | F9: 35 | G9: 34
B10: Pire | C10: 25 | D10: 22 | E10: 19 | F10: 18 | G10: 17
B11: Total | C11: 100 | D11: 100 | E11: 100 | F11: 100 | G11: 100
B12: Cas (n) | C12: 445 | D12: 1562 | E12: 186 | F12: 470 | G12: 223
B13: Source: Fox, 1999: 135
B29: Écoute quotidienne de la TV en fonction du niveau d'instruction (%)
B31: Écoute quotidienne de la TV | C31: Niveau d'instruction
C32: Pas de secondaire | D32: Secondaire | E32: Collège | F32: Universitaire 1er cycle | G32: Universitaire avancé
B33: 5 h ou plus | C33: 29 | D33: 17 | E33: 11 | F33: 7 | G33: 4
B34: de 3 à 4 h | C34: 35 | D34: 34 | E34: 28 | F34: 25 | G34: 20
B35: 2 h | C35: 22 | D35: 29 | E35: 37 | F35: 30 | G35: 34
B36: de 0 à 1 h | C36: 14 | D36: 20 | E36: 24 | F36: 38 | G36: 42
B37: Total | C37: 100 | D37: 100 | E37: 100 | F37: 100 | G37: 100
B38: n | C38: 293 | D38: 1068 | E38: 117 | F38: 314 | G38: 154
B39: Source: Fox, 1999: 136
B57: Diagrammes en bâtons empilés (exercice)
B59: Sentiment d'attachement à son quartier en fonction du niveau d'instruction (%)
B61: Sentiment d'attachement à son quartier | C61: Niveau d'instruction
C62: Pas de secondaire | D62: Secondaire | E62: Collège | F62: Universitaire 1er cycle | G62: Universitaire avancé
B63: Attaché | C63: 62 | D63: 55 | E63: 49 | F63: 60 | G63: 59
B64: Peu attaché | C64: 38 | D64: 45 | E64: 51 | F64: 40 | G64: 41
B65: Total | C65: 100 | D65: 100 | E65: 100 | F65: 100 | G65: 100
B66: n | C66: 183 | D66: 740 | E66: 81 | F66: 220 | G66: 101
B67: Source: Fox, 1999: 137

Sheet Exercice compl.
B2: Analyse tabulaire bivariée et représentation graphique (exercice complémentaire)
B4: Y a-t-il une relation d'association entre l'intérêt concernant l'anthropologie psychologique et le type de présentation du prof?
B6: Intérêt en anthropologie psychologique des étudiants selon le type de présentation (en fréquences)
C8: Type de présentation
B9: Intérêt dans la matière | C9: Film | D9: Diapositives | E9: Traditionnel | F9: Total
B10: Veut en savoir plus | C10: 12 | D10: 6 | E10: 4 | F10: 22
B11: Peu intéressé | C11: 10 | D11: 10 | E11: 6 | F11: 26
B12: Pas du tout intéressé | C12: 8 | D12: 16 | E12: 18 | F12: 42
B13: Total | C13: 30 | D13: 32 | E13: 28 | F13: 90
B15: Construisez le tableau bivarié en pourcentages | H15: 1. Quelle est, dans ce contexte, la variable dépendante?
B17: Intérêt dans la matière | C17: Type de présentation
C18: Film | D18: Diapositives | E18: Traditionnel
B19: Veut en savoir plus | H19: 2. Quel est le nombre total de cas?
B20: Peu intéressé
B21: Pas du tout intéressé
B22: Total | C22: 100 | D22: 100 | E22: 100
H23: 3. Quel est le % d'étudiants préférant une présentation de type filmographique et qui veulent en savoir plus?
B24: Construisez le diagramme en bâtons approprié (en %)
H28: 4. Quel est le % d'étudiants préférant une présentation de type traditionnel et qui veulent en savoir plus?
H33: 5. Quel est la différence en termes de points en %?
H37: 7. Concluez sur la relation étudiée
